Workbook

Sheet Tabelle1
D2: Canasta Scorelist | H2: 2023-09-01
D4: Mädels | F4: Diff. | G4: Männers
B6: Nr.
B7: 1 | C7: C | D7: 895 | E7: =IF(D7=0,"",D7) -> 895 | F7: =IF(OR(D7=0,G7=0),"",H7-E7) -> 75 | G7: 970 | H7: =IF(G7=0,"",G7) -> 970
B8: 2 | D8: -350 | E8: =IF(D8=0,"",D8+E7) -> 545 | F8: =IF(OR(D8=0,G8=0),"",H8-E8) -> 1180 | G8: 755 | H8: =IF(G8=0,"",G8+H7) -> 1725
B9: 3 | D9: 445 | E9: =IF(D9=0,"",D9+E8) -> 990 | F9: =IF(OR(D9=0,G9=0),"",H9-E9) -> 1805 | G9: 1070 | H9: =IF(G9=0,"",G9+H8) -> 2795
B10: 4 | D10: 695 | E10: 1685 | F10: 470 | G10: -640 | H10: 2155
B11: 5 | C11: C | D11: 780 | E11: 2465 | F11: 710 | G11: 1020 | H11: 3175
B12: 6 | D12: 765 | E12: 3230 | F12: -610 | G12: -555 | H12: 2620
B13: 7 | D13: 1550 | E13: 4780 | F13: -1675 | G13: 485 | H13: 3105
B14: 8 | D14: 855 | E14: 5635 | F14: -2915 | G14: -385 | H14: 2720
B15: 9 | C15: C | D15: -620 | E15: 5015 | F15: -1220 | G15: 1075 | H15: 3795
B16: 10 | D16: 680 | E16: 5695 | F16: -3035 | G16: -1135 | H16: 2660
B17: 11 | D17: 1050 | E17: 6745 | F17: -4560 | G17: -475 | H17: 2185
B18: 12 | D18: 1090 | E18: 7835 | F18: -4405 | G18: 1245 | H18: 3430
B19: 13 | C19: C | D19: 1120 | E19: =IF(D19=0,"",D19+E18) -> 8955 | F19: -5025 | G19: 500 | H19: =IF(G19=0,"",G19+H18) -> 3930
B20: 14 | D20: -230 | E20: 8725 | F20: -3945 | G20: 850 | H20: 4780
B21: 15 | D21: 950 | E21: 9675 | F21: -3730 | G21: 1165 | H21: 5945
B22: 16 | D22: 1685 | E22: 11360 | F22: -5835 | G22: -420 | H22: 5525
B23: 17 | C23: C | D23: 910 | E23: 12270 | F23: -6175 | G23: 570 | H23: 6095
B24: 18 | D24: 400 | E24: 12670 | F24: -5905 | G24: 670 | H24: 6765
B25: 19 | D25: 660 | E25: 13330 | F25: -5405 | G25: 1160 | H25: 7925
B26: 20 | D26: 810 | E26: 14140 | F26: -5740 | G26: 475 | H26: 8400
B27: 21 | C27: C | D27: 875 | E27: 15015 | F27: -6150 | G27: 465 | H27: 8865 | I27: x
B28: =B27+1 -> 22 | D28: 1355 | E28: 16370 | F28: -6870 | G28: 635 | H28: 9500
B29: =B28+1 -> 23 | D29: 590 | E29: 16960 | F29: -6690 | G29: 770 | H29: 10270
B30: 24 | D30: 685 | E30: 17645 | F30: -7815 | G30: -440 | H30: 9830
B31: 25 | C31: C | D31: 740 | E31: =IF(D31=0,"",D31+E30) -> 18385 | F31: -9005 | G31: -450 | H31: =IF(G31=0,"",G31+H30) -> 9380
B32: =B31+1 -> 26 | D32: 885 | E32: =IF(D32=0,"",D32+E31) -> 19270 | F32: =IF(OR(D32=0,G32=0),"",H32-E32) -> -9325 | G32: 565 | H32: =IF(G32=0,"",G32+H31) -> 9945
B33: =B32+1 -> 27 | D33: 785 | E33: 20055 | F33: -8760 | G33: 1350 | H33: 11295
B34: =B33+1 -> 28 | D34: -270 | E34: 19785 | F34: -7760 | G34: 730 | H34: 12025
B35: =B34+1 -> 29 | C35: C | D35: 515 | E35: =IF(D35=0,"",D35+E34) -> 20300 | F35: -7380 | G35: 895 | H35: =IF(G35=0,"",G35+H34) -> 12920
B37: Platz | E37: 1. | H37: 2.
D39: MinusSp. | E39: =COUNTIF(D:D,"<0") -> 4 | G39: MinusSp. | H39: =COUNTIF(G:G,"<0") -> 8
E41: =INDEX(F:F,E42-1) -> 0
E42: =MATCH("",F:F,-1) -> 4

Sheet Tabelle2

Sheet Tabelle3
